bitfinex/quotes_ETHUSD_20250801
["timestamp","ask_amount","ask_price","bid_price","bid_amount"]
[1754064353034,4.291,3618.9,3618.7,2.76342233]
[1754064353229,4.291,3618.9,3618.5,2.76350278]
[1754064353430,4.291,3618.9,3618.5,2.76351227]
[1754064353666,1.59122657,3619.2,3619.1,2.7631179]
[1754064353963,1.59122657,3619.2,3619.1,3.8094179]
[1754064355753,1.59122657,3619.2,3619.1,2.9015179]
[1754064355953,1.59122657,3619.2,3619.1,2.7631179]
[1754064356640,1.59122657,3619.2,3618.8,2.90174577]
[1754064356852,1.59122657,3619.2,3618.8,0.1384]
[1754064357048,1.59122657,3619.2,3619.0,2.76319368]
[1754064357371,1.59122657,3619.2,3618.8,2.90168897]
[1754064357372,1.59122657,3619.2,3619.1,2.7631179]
[1754064357934,1.59122657,3619.2,3619.1,3.2403179]
[1754064358151,5.88122657,3619.2,3619.1,3.6710179]
[1754064358934,1.59122657,3619.2,3619.1,3.87601472]
[1754064359639,1e-08,3620.1,3620.0,2.76243093]
[1754064359840,4.29000001,3620.1,3620.0,2.76243093]
[1754064360076,1e-08,3620.1,3620.0,3.67033093]
[1754064360371,1e-08,3620.1,3620.0,6.67033093]
[1754064360535,1e-08,3620.1,3620.0,7.22033093]
[1754064360873,0.001,3620.5,3620.4,5.76212573]
[1754064361371,4.29,3621.0,3620.9,2.76174431]
[1754064361571,0.001,3621.5,3621.4,2.761363]
[1754064361777,4.291,3621.5,3621.4,2.761363]
[1754064364760,4.291,3621.5,3621.4,3.192063]
[1754064364969,4.291,3621.5,3621.4,3.669263]
[1754064365372,4.291,3621.5,3621.4,2.761363]
[1754064366667,4.291,3621.5,3621.4,3.669263]
[1754064367385,4.291,3621.5,3621.4,3.69687663]
[1754064367681,0.001,3621.5,3621.4,3.669263]
[1754064368184,0.001,3621.5,3621.4,6.669263]
[1754064370083,0.001,3621.5,3621.4,6.807663]
[1754064370553,0.001,3621.5,3621.4,5.899763]
[1754064371689,0.001,3621.5,3621.4,2.899763]
[1754064372283,0.001,3621.5,3621.1,0.20514207]
[1754064372586,0.001,3621.5,3620.5,0.9079]
[1754064372587,0.1384,3621.3,3621.2,2.76151551]
[1754064372749,0.001,3621.5,3621.4,2.761363]
[1754064373688,0.001,3621.5,3621.4,3.669263]
[1754064374046,0.001,3621.5,3621.4,3.807663]
[1754064374751,0.001,3621.5,3621.4,2.899763]
[1754064374952,0.001,3621.5,3621.3,2.76139408]
[1754064375261,0.001,3621.5,3620.6,2.76191604]
[1754064375262,0.4659,3621.4,3620.1,0.4307]
[1754064375461,0.1384,3621.2,3620.7,2.76184633]
[1754064375796,0.1384,3621.0,3620.7,2.76184633]
[1754064375960,0.6125,3621.0,3620.7,2.76184633]
[1754064376555,0.4741,3620.9,3620.2,2.76226233]
[1754064376763,0.1384,3620.7,3620.3,2.76220202]
[1754064376969,0.4741,3620.6,3620.3,2.76220202]
[1754064377164,0.4741,3620.6,3620.4,2.76208122]
[1754064377377,8.66114118,3624.1,3620.5,0.9512]
[1754064377378,0.4751,3621.5,3620.5,0.9512]
[1754064377692,0.1384,3621.2,3620.6,2.76191794]
[1754064377870,0.6125,3621.2,3620.7,0.1384]
[1754064378070,0.1384,3621.2,3620.7,2.90027092]
[1754064378273,0.4741,3621.1,3620.9,2.76174202]
[1754064378610,0.1384,3621.2,3620.9,2.76168061]
[1754064378769,0.001,3621.5,3621.1,2.76152242]
[1754064378977,4.286,3621.4,3621.0,3.85124866]
[1754064379357,4.286,3621.4,3621.2,2.76146454]
[1754064379600,4.286,3621.4,3621.1,2.76157902]
[1754064379968,4.286,3621.4,3621.2,2.76149327]
[1754064380164,4.286,3621.4,3621.1,2.76156141]
[1754064380600,4.286,3621.4,3621.0,0.1384]
[1754064380984,4.286,3621.4,3621.0,2.90002718]
[1754064381305,0.1394,3621.5,3621.3,2.76143926]
[1754064381486,0.001,3621.5,3621.4,2.899763]
[1754064381795,0.001,3621.5,3621.4,3.87857663]
[1754064382004,0.001,3621.5,3621.4,3.850963]
[1754064382177,0.001,3621.5,3621.4,3.87857663]
[1754064382495,0.001,3621.5,3621.4,4.38168948]
[1754064382693,0.001,3621.5,3621.4,11.66768948]
[1754064382894,0.001,3621.5,3621.4,12.19007585]
[1754064383260,1e-08,3621.5,3621.4,12.19007585]
[1754064383466,1e-08,3621.9,3621.8,3.31105803]
[1754064383686,1e-08,3621.9,3621.8,17.26676526]
[1754064383882,1e-08,3621.9,3621.8,18.32875468]
[1754064384562,1e-08,3621.9,3621.8,21.32875468]
[1754064385698,1e-08,3621.9,3621.8,25.97712568]
[1754064386094,1e-08,3621.9,3621.8,24.52541568]
[1754064386264,1e-08,3621.9,3621.8,23.68115468]
[1754064386773,0.001,3622.7,3621.8,23.68115468]
[1754064386774,1e-08,3622.7,3622.6,5.76044829]
[1754064386993,1e-08,3622.7,3622.6,19.85242222]
[1754064387302,1e-08,3622.7,3622.6,11.68404829]
[1754064388768,1e-08,3622.7,3622.6,11.8938411]
[1754064391325,1e-08,3622.7,3622.6,17.0423121]
[1754064391620,1e-08,3622.7,3622.6,17.42743482]
[1754064392218,0.3361,3624.8,3623.6,5.75968649]
[1754064392219,0.4741,3624.5,3623.6,5.75968649]
[1754064392394,1e-08,3623.7,3623.6,10.59268649]
[1754064392594,1e-08,3623.7,3623.6,11.68148649]
[1754064393099,11.5287,3625.1,3623.8,2.75953419]
[1754064393289,4.8947,3625.1,3624.9,2.75867491]
[1754064393624,0.4741,3625.0,3624.9,2.75869679]
[1754064394434,0.4741,3625.3,3624.7,0.20772896]
[1754064394617,0.4741,3625.3,3625.2,2.75846849]
[1754064394926,0.4741,3625.3,3625.2,2.89606849]
[1754064395623,0.1376,3625.8,3625.2,0.52272272]
[1754064395824,2.7574952,3626.5,3625.2,0.52272272]
[1754064396039,0.4741,3626.0,3625.9,2.75793596]
[1754064396203,1.59161421,3626.6,3625.9,0.50311285]
[1754064396390,1.59161421,3626.6,3626.0,4.282]
[1754064396588,1.59161421,3626.6,3626.5,2.75747966]
[1754064396790,1.11751421,3626.6,3626.5,2.75747966]
[1754064397894,1.59161421,3626.6,3626.5,2.75747966]
[1754064398090,1.59161421,3626.6,3626.3,4.282]
[1754064398290,0.8102,3626.5,3625.0,3.0]
[1754064398494,1.27667563,3626.6,3625.7,2.7580229]
[1754064398495,3.56775946,3626.4,3625.7,2.7580229]
[1754064398791,1.11751421,3626.6,3626.0,2.7578599]
[1754064399006,1.11751421,3626.6,3626.5,2.75747966]
[1754064399196,1.11751421,3626.6,3626.4,2.75749836]
[1754064399403,0.4741,3626.5,3625.9,3.0]
[1754064399602,0.4741,3626.5,3626.4,2.75749067]
[1754064399926,1.11751421,3626.6,3626.5,2.75747966]
[1754064401113,1.11751421,3626.6,3626.5,2.78505445]
[1754064402126,0.4741,3627.4,3626.9,2.75714395]
[1754064402326,0.4741,3627.4,3626.6,7.03740362]
[1754064402492,0.4741,3627.4,3627.1,2.75696592]
[1754064402696,0.4741,3627.4,3626.6,7.03737142]
[1754064402897,0.4741,3627.4,3626.7,3.0]
[1754064403095,4.28,3628.0,3627.1,2.75695204]
[1754064403331,0.4741,3627.7,3627.6,2.75664351]
[1754064403696,0.14416329,3629.2,3628.1,2.7562636]
[1754064403894,0.14416329,3629.2,3627.2,4.28]
[1754064403895,0.98338896,3628.2,3627.8,2.75643249]
[1754064404105,0.98338896,3628.2,3627.8,2.75641621]
[1754064404106,0.8102,3628.1,3627.8,2.75641621]
[1754064404427,0.17318896,3628.2,3627.8,2.75648352]
[1754064404630,0.17318896,3628.2,3627.9,2.75635539]
[1754064404828,0.8102,3628.1,3627.3,2.7568715]
[1754064405040,0.4741,3628.0,3627.6,2.75663987]
[1754064405207,0.8102,3627.9,3627.1,2.75701522]
[1754064405539,0.7908,3627.8,3626.9,2.75711725]
[1754064405738,2.7566658,3627.6,3626.5,0.20845699]
[1754064405910,2.75686444,3627.4,3626.7,2.75731048]
[1754064406237,0.4547,3627.3,3626.9,0.1376]
[1754064406442,0.7908,3627.2,3626.7,2.7573204]
[1754064406742,0.7908,3627.1,3626.7,0.1376]
[1754064406939,0.4547,3627.0,3626.7,0.1376]
[1754064407156,0.4547,3627.0,3626.9,2.75717554]
[1754064407306,0.4547,3627.7,3627.6,2.75664351]
[1754064407507,0.1376,3628.0,3627.5,2.75671246]
[1754064407738,4.46318896,3628.2,3627.6,0.1376]
[1754064407903,4.46318896,3628.2,3627.9,0.1376]
[1754064408106,4.91788896,3628.2,3627.9,0.1376]
[1754064408309,4.46318896,3628.2,3628.0,2.7563347]
[1754064408533,0.17318896,3628.2,3628.0,2.75633351]
[1754064408741,0.17318896,3628.2,3628.1,2.7562636]
[1754064409333,0.17318896,3628.2,3628.1,2.78382623]
[1754064409529,0.17318896,3628.2,3628.1,3.52016188]
[1754064410849,0.17318896,3628.2,3628.1,4.41216188]
[1754064411417,0.001,3628.5,3628.4,3.30603571]
[1754064411747,0.001,3628.5,3628.4,10.77819606]
[1754064411948,0.001,3628.5,3628.4,11.93213563]
[1754064413036,0.001,3628.5,3628.4,11.38213563]
[1754064413551,0.001,3628.5,3628.4,7.07513563]
[1754064413758,0.001,3628.5,3628.4,12.14180187]
[1754064413971,0.001,3628.5,3628.4,12.60413974]
[1754064417156,0.001,3628.5,3628.4,12.13880187]
[1754064417755,0.001,3628.5,3628.4,7.83580187]
[1754064417953,0.001,3628.5,3628.4,12.59913974]
[1754064419055,0.4547,3629.9,3629.5,2.75516781]
[1754064419280,0.4547,3629.9,3629.7,2.75502401]
[1754064419422,0.4547,3629.9,3629.2,4.301]
[1754064419423,0.4547,3629.9,3629.6,2.75509725]
[1754064419625,0.4547,3629.9,3629.6,2.75512453]
[1754064419871,0.4547,3629.8,3629.7,2.75502047]
[1754064420752,0.1376,3630.1,3629.7,2.75502047]
[1754064420923,0.1376,3630.1,3629.9,2.75484263]
[1754064421123,0.1376,3630.1,3629.7,2.75503576]
[1754064421439,0.1376,3630.1,3629.6,2.75507497]
[1754064421618,0.1376,3630.1,3629.5,0.1376]
[1754064421820,0.1376,3630.1,3630.0,2.75482093]
[1754064422382,0.1376,3630.1,3629.8,2.75490883]
[1754064422383,2.75481154,3630.1,3629.1,0.46233787]
[1754064422525,2.75481154,3630.1,3627.8,2.75647736]
[1754064422526,2.75496885,3629.9,3628.9,2.75559216]
[1754064422722,0.7908,3629.8,3629.0,4.297]
[1754064422957,3.0,3630.5,3629.1,3.02755504]
[1754064422958,0.4547,3630.2,3629.1,3.02755504]
[1754064423159,0.4547,3630.2,3629.7,2.75497999]
[1754064423323,0.4547,3630.1,3629.6,2.75509901]
[1754064423672,0.4547,3630.0,3629.6,2.75505255]
[1754064423967,0.4547,3630.0,3629.4,2.75522837]
[1754064424258,2.75445341,3630.5,3629.4,2.75522837]
[1754064424259,0.4547,3630.5,3629.7,2.75500134]
[1754064424428,2.75464102,3630.3,3629.6,2.75509412]
[1754064424625,2.75474504,3630.1,3628.9,3.0]
[1754064424961,0.7908,3630.0,3629.1,3.0]
[1754064425262,3.20961081,3629.9,3629.3,2.75534293]
[1754064425460,0.3361,3630.0,3628.7,0.4591]
[1754064425659,0.3361,3630.0,3629.5,2.75515208]
[1754064425660,0.4547,3630.0,3629.5,2.75515208]
[1754064425839,2.7548247,3630.0,3628.8,4.294]
[1754064426153,2.7548247,3630.0,3628.9,0.91955655]
[1754064426154,0.4547,3630.0,3628.9,0.91955655]
[1754064426358,2.75489789,3629.9,3629.2,2.75537123]
[1754064426555,0.4547,3629.8,3629.3,2.75534213]
[1754064426758,2.75482093,3630.0,3629.4,2.75525881]
[1754064426961,2.75482093,3630.0,3629.2,2.75542819]
[1754064426962,3.2094523,3630.1,3629.5,2.75518896]
[1754064427127,1.0926,3630.5,3629.9,2.75488694]
[1754064427327,7.0807,3630.6,3629.7,2.75501466]
[1754064427563,0.4547,3630.8,3629.8,3.64693118]
[1754064427762,0.4547,3631.5,3629.8,0.91954972]
[1754064427930,0.4547,3631.3,3629.9,1.2291819]
[1754064428130,0.4547,3631.3,3630.0,0.892]
[1754064428330,0.3361,3631.2,3630.6,2.75431701]
[1754064428549,2.75393124,3631.2,3630.5,2.75437717]
[1754064428760,4.294,3631.3,3630.3,0.892]
[1754064428946,0.4547,3631.2,3630.3,3.64652154]
[1754064429146,0.4547,3631.2,3630.0,0.4591]
[1754064429356,0.4547,3631.2,3630.5,2.75439585]
[1754064429529,0.4547,3631.2,3630.7,2.7542852]
[1754064429725,0.4547,3631.2,3630.4,2.75450393]
[1754064429726,3.20862735,3631.2,3630.4,2.75450393]
[1754064429930,1.15889719,3631.1,3630.5,2.75438577]
[1754064430150,1.15889719,3631.1,3630.2,0.4591]
[1754064430151,1.15889719,3631.1,3630.6,2.75436036]
[1754064430375,2.75368411,3631.5,3627.6,7.96101977]
[1754064430376,0.01,3631.9,3630.7,0.892]
[1754064430676,0.01,3631.9,3631.3,2.75382367]
[1754064430964,0.4647,3631.9,3631.6,2.75360371]
[1754064431165,0.01,3631.9,3631.7,2.75347813]
[1754064431565,0.01,3631.9,3631.5,2.75365236]
[1754064431566,0.01,3631.9,3631.5,2.75368305]
[1754064431862,0.01,3631.9,3631.5,2.75361768]
[1754064432042,0.4547,3631.8,3631.4,2.75373109]
[1754064432247,0.01,3631.9,3631.5,2.75367037]
[1754064432560,0.1376,3631.8,3631.3,0.1376]
[1754064432762,0.1376,3631.8,3631.7,2.7535314]
[1754064432948,0.1376,3631.8,3631.4,2.75375888]
[1754064433149,0.5923,3631.8,3631.4,2.75375888]
[1754064433354,0.7908,3631.7,3630.4,0.4329]
[1754064433541,4.7467,3631.6,3630.5,2.75443257]
[1754064433744,0.7908,3631.5,3630.4,0.20991733]
[1754064434067,0.55,3631.3,3629.9,0.20416731]
[1754064434272,1.22488,3631.2,3629.8,0.4591]
[1754064434439,2.75404588,3631.1,3630.3,2.75452703]
[1754064434634,2.75426626,3630.8,3629.8,0.892]
[1754064434834,4.297,3630.9,3629.6,3.0]
[1754064435034,4.297,3630.9,3630.5,2.75442361]
[1754064435237,4.297,3630.9,3630.3,0.892]
[1754064435467,0.473108,3630.9,3629.4,0.9087]
[1754064435665,0.473108,3630.9,3628.8,2.75569084]
[1754064435666,0.466,3631.4,3630.0,0.434]
[1754064435848,4.3,3630.9,3630.6,2.75435499]
[1754064436164,0.476,3631.9,3630.7,0.9087]
[1754064436365,4.3,3631.5,3631.2,2.75388899]
[1754064436540,4.3,3631.5,3630.7,0.46154289]
[1754064436541,0.01,3631.9,3631.3,0.9087]
[1754064436749,0.01,3631.9,3631.7,2.75347714]
[1754064437052,0.01,3631.9,3631.7,2.75349972]
[1754064437769,0.01,3631.9,3631.4,0.4747]
[1754064438068,2.75390066,3631.3,3630.1,3.0]
[1754064438378,2.7535314,3631.7,3629.8,0.68033584]
[1754064438379,2.75377087,3631.4,3630.8,2.75418064]
[1754064438671,2.75377087,3631.4,3630.6,2.75435825]
[1754064438672,2.75388915,3631.3,3630.7,0.21072574]
[1754064438876,4.307,3631.4,3630.5,0.434]
[1754064439077,4.307,3631.4,3629.7,5.75497441]
[1754064439078,4.307,3631.4,3631.0,2.75399535]
[1754064439377,4.307,3631.4,3631.1,0.9087]
[1754064439545,4.307,3631.5,3631.2,2.75391055]
[1754064439945,4.307,3631.5,3631.1,0.434]
[1754064440146,4.307,3631.5,3631.0,2.75399775]
[1754064440352,3.21981172,3631.4,3630.7,2.75427028]
[1754064440548,3.21981172,3631.4,3630.0,4.1135102]
[1754064440549,2.75383471,3631.3,3630.0,4.1135102]
[1754064440746,0.466,3631.3,3630.2,3.0]
[1754064440973,3.21984537,3631.3,3630.6,2.75431377]
[1754064441688,2.75391704,3631.2,3630.6,2.75431377]
[1754064441842,4.308,3631.2,3630.4,2.75449951]
[1754064442040,7.06192709,3631.2,3630.5,2.75438372]
[1754064442240,4.308,3631.2,3630.6,2.75429972]
[1754064442636,3.45974623,3631.5,3630.2,3.0]
[1754064442637,0.70605244,3631.5,3630.2,3.0]
[1754064442871,0.17190608,3632.1,3631.1,2.75391757]
[1754064442872,4.306,3631.7,3631.1,2.75391757]
[1754064443075,4.306,3631.7,3631.2,0.4747]
[1754064443368,4.306,3631.7,3631.5,2.7536281]
[1754064443568,0.1476,3631.9,3631.8,2.75345558]
[1754064443569,4.322,3631.9,3631.8,2.75345558]
[1754064443769,4.322,3631.9,3631.6,0.1376]
[1754064443971,4.322,3631.9,3631.4,0.9087]
[1754064443972,4.322,3631.9,3630.9,0.55]
[1754064444171,4.322,3631.9,3630.8,2.75417606]
[1754064444172,0.01,3631.9,3631.8,2.75345558]
[1754064444373,4.322,3631.9,3631.7,2.75351979]
[1754064444575,0.01,3631.9,3631.6,3.3658828]
[1754064444746,4.323,3631.9,3630.7,0.434]
[1754064445069,2.75360984,3631.6,3631.0,0.1376]
[1754064445276,2.89128727,3631.5,3630.8,2.75419319]
[1754064445461,2.75378863,3631.4,3630.9,0.1376]
[1754064445774,0.1376,3631.5,3630.9,0.1376]
[1754064445943,0.1376,3631.5,3631.0,0.434]
[1754064446141,0.1376,3631.5,3631.1,3.66263193]
[1754064446376,4.313,3631.6,3631.4,0.1376]
[1754064446873,4.313,3631.6,3630.3,0.55]
[1754064446874,0.1376,3631.5,3630.9,0.1376]
[1754064447075,0.1376,3631.5,3631.2,2.75385732]
[1754064447243,4.319,3631.6,3631.2,2.891435]
[1754064447575,4.319,3631.6,3631.2,0.1376]
[1754064448075,0.1376,3631.7,3631.2,3.36620816]
[1754064448265,0.1376,3631.7,3631.6,0.1376]
[1754064448266,4.32,3631.7,3631.6,0.1376]
[1754064448468,0.01,3631.9,3631.6,0.1376]
[1754064448875,0.01,3631.9,3631.7,2.75349963]
[1754064449053,0.01,3631.9,3631.6,0.1376]
[1754064449260,0.01,3631.9,3631.6,1.0463]
[1754064449645,0.01,3631.9,3631.7,2.7535314]
[1754064449846,0.01,3631.9,3631.6,1.0463]
[1754064450043,0.01,3631.9,3631.8,2.75345558]
[1754064450381,0.01,3631.9,3631.8,3.44267033]
[1754064450382,4.329,3631.9,3631.8,3.44267033]
[1754064450578,0.01,3631.9,3631.8,4.35137033]
[1754064454172,0.011,3631.9,3631.8,4.35137033]
[1754064454503,1e-08,3632.3,3632.2,2.75315235]
[1754064454809,0.1416,3632.7,3632.6,2.75284919]
[1754064454810,0.004,3632.7,3632.6,2.75284919]
[1754064454963,0.004,3632.7,3632.6,10.66537768]
[1754064455162,0.004,3632.7,3632.6,7.4143441]
[1754064455359,0.01,3632.9,3632.8,2.75269764]
[1754064455672,1e-08,3632.9,3632.8,6.33022461]
[1754064455878,1e-08,3632.9,3632.8,7.21139764]
[1754064456197,1e-08,3632.9,3632.8,6.66139764]
[1754064457095,1e-08,3632.9,3632.8,10.99439764]
[1754064457303,1e-08,3632.9,3632.8,7.08569764]
[1754064457470,1e-08,3632.9,3632.8,7.42231846]
[1754064457671,1e-08,3632.9,3632.8,8.33101846]
[1754064457871,1e-08,3632.9,3632.8,3.99801846]
[1754064458783,1e-08,3632.9,3632.8,4.02554543]
[1754064458978,1e-08,3632.9,3632.8,3.99801846]
[1754064459385,1e-08,3632.9,3632.8,8.35654543]
[1754064459586,1e-08,3632.9,3632.8,8.33301846]
[1754064459988,1e-08,3632.9,3632.8,6.99801846]
[1754064460195,1e-08,3632.9,3632.8,11.33401846]
[1754064461304,1e-08,3632.9,3632.8,32.63535866]
[1754064461505,1e-08,3633.9,3633.8,2.75194011]
[1754064461668,1e-08,3633.9,3633.8,10.91413412]
[1754064461871,1e-08,3633.9,3633.8,11.82283412]
[1754064463400,1e-08,3633.9,3633.8,11.26983412]
[1754064463813,1e-08,3633.9,3633.8,11.81983412]
[1754064464006,1e-08,3633.9,3633.8,11.38483412]
[1754064464302,1e-08,3633.9,3633.8,11.81883412]
[1754064464670,1e-08,3633.9,3633.8,11.95643412]
[1754064465072,1e-08,3633.9,3633.8,12.56003412]
[1754064465474,1e-08,3633.9,3633.8,12.08533412]
[1754064465672,1e-08,3633.9,3633.8,11.10033412]
[1754064465908,1e-08,3633.9,3633.8,6.16473412]
[1754064466104,1e-08,3633.9,3633.8,2.88954011]
[1754064466313,1e-08,3633.9,3633.8,3.81474011]
[1754064466472,1e-08,3633.9,3633.8,2.88954011]
[1754064467111,0.47310001,3633.9,3633.8,0.1376]
[1754064467307,1e-08,3633.9,3633.8,2.88954011]
[1754064467512,0.80920001,3633.9,3633.8,0.1376]
[1754064467712,0.80920001,3633.9,3633.8,2.88954011]
[1754064467876,0.47310001,3633.9,3633.8,2.88954011]
[1754064468284,0.47310001,3633.9,3633.8,0.1376]
[1754064468627,1e-08,3633.9,3633.8,2.88954011]
[1754064468933,1e-08,3633.9,3633.8,4.36635486]
[1754064469095,1e-08,3633.9,3633.8,4.94387426]
[1754064469415,1e-08,3633.9,3633.8,3.44115486]
[1754064469815,1e-08,3633.9,3633.8,3.93917426]
[1754064469980,1e-08,3633.9,3633.8,4.39387426]
[1754064471333,1e-08,3633.9,3633.8,4.91635486]
[1754064471711,1e-08,3633.9,3633.8,23.79945626]
[1754064471908,1e-08,3633.9,3633.8,11.80263886]
[1754064472118,1e-08,3633.9,3633.8,8.68243886]
[1754064472687,1e-08,3633.9,3633.8,4.36635486]
[1754064473001,1e-08,3633.9,3633.8,7.77815486]
[1754064473493,1e-08,3633.9,3633.8,7.77915486]
[1754064473892,1e-08,3633.9,3633.8,12.25435486]
[1754064474515,1e-08,3633.9,3633.8,28.46804286]
[1754064475228,0.01,3634.9,3634.8,2.751183]
[1754064475464,0.01,3634.9,3634.8,2.888783]
[1754064476134,0.4831,3634.9,3634.8,2.888783]
[1754064476431,0.01,3634.9,3634.8,2.888783]
[1754064476630,0.4831,3634.9,3634.8,2.888783]
[1754064477023,0.01,3634.9,3634.8,2.888783]
[1754064477811,0.4831,3634.9,3634.8,2.888783]
[1754064478011,0.4831,3634.9,3634.8,0.1376]
[1754064478208,0.4831,3634.9,3634.8,2.888783]
[1754064479015,0.4831,3634.9,3634.8,2.751183]
[1754064479443,0.4831,3634.9,3634.7,0.1376]
[1754064479755,0.01,3634.9,3634.8,2.751183]
[1754064480136,0.01,3634.9,3634.8,3.08780382]
[1754064480469,0.4831,3634.9,3634.8,0.33662082]
[1754064480676,0.4831,3634.9,3634.7,0.1376]
[1754064480828,0.4731,3634.8,3634.7,2.95511109]
[1754064481028,0.01,3634.9,3634.8,2.751183]
[1754064482761,0.01,3634.9,3634.8,3.70389483]
[1754064482938,0.01,3634.9,3634.8,8.03889483]
[1754064483141,0.01,3634.9,3634.8,8.011383]
[1754064483785,0.01,3635.9,3635.8,2.75042631]
[1754064484152,0.1706232,3636.2,3635.8,2.75042631]
[1754064484341,0.1706232,3636.2,3636.1,2.75019938]
[1754064485486,0.1706232,3636.2,3636.1,3.67539938]
[1754064485632,0.1706232,3636.2,3636.1,4.25290137]
[1754064485837,0.01,3636.9,3636.8,2.74967003]
[1754064486644,0.01,3636.9,3636.8,7.08567003]
[1754064486868,0.4831,3636.9,3636.0,0.9252]
[1754064487063,0.4831,3636.9,3635.2,0.9252]
[1754064487269,0.3361,3636.8,3635.3,4.336]
[1754064487578,0.98862,3636.7,3635.9,2.75030386]
[1754064487883,2.74992682,3636.5,3635.9,0.2039296]
[1754064488064,0.8092,3636.4,3635.0,4.336]
[1754064488253,2.75034097,3636.0,3635.0,3.23008958]
[1754064488445,2.75058307,3635.6,3635.0,2.75102635]
[1754064488651,2.75073101,3635.4,3634.8,2.751183]
[1754064488873,0.4731,3635.5,3634.8,0.20413613]
[1754064489086,2.75073717,3635.4,3634.5,2.75138874]
[1754064489268,0.82909372,3635.3,3634.6,2.75132964]
[1754064489588,0.4731,3635.3,3634.7,2.75119365]
[1754064489895,0.4731,3635.3,3634.7,2.75125014]
[1754064490046,2.75090789,3635.2,3634.6,0.20205016]
[1754064490252,0.4731,3635.3,3634.7,2.75119003]
[1754064490549,0.4731,3635.3,3634.6,2.75126274]
[1754064490853,2.7508807,3635.2,3634.5,2.75138679]
[1754064491072,0.1376,3635.2,3634.7,0.1376]
[1754064491277,0.4731,3635.1,3634.6,0.20655256]
[1754064491582,0.6107,3635.0,3634.5,0.1376]
[1754064491885,0.6107,3635.0,3634.6,2.75133439]
[1754064492074,0.1376,3635.0,3634.5,0.1376]
[1754064492277,0.4731,3634.9,3634.6,2.75133233]
[1754064492473,0.4731,3634.9,3634.5,0.1376]
[1754064492660,0.8092,3634.8,3634.1,0.01]
[1754064492861,2.75137512,3634.6,3634.1,0.01]
[1754064493173,0.8092,3634.7,3634.1,0.01]
[1754064493374,2.75163722,3634.2,3634.1,0.01]
[1754064493892,3.56083722,3634.2,3634.1,0.01]
[1754064494090,4.88810108,3634.2,3634.1,0.01]
[1754064494449,7.88810108,3634.2,3634.1,0.01]
[1754064494957,12.22110108,3634.2,3634.1,0.01]
[1754064495350,9.22110108,3634.2,3634.1,0.01]
[1754064496496,12.22110108,3634.2,3634.1,0.01]
[1754064497589,7.88810108,3634.2,3634.1,0.01]
[1754064497797,4.55200108,3634.2,3634.1,0.01]
[1754064498013,7.08663722,3634.2,3634.1,0.01]
[1754064498254,7.58503722,3634.2,3634.1,0.01]
[1754064499053,2.75178866,3634.0,3633.9,0.002]
[1754064499649,7.92128866,3634.0,3633.9,0.002]
[1754064499852,7.92128866,3634.0,3633.8,0.002]
[1754064499853,5.75186438,3633.9,3633.8,0.002]
[1754064500215,6.58636438,3633.9,3633.8,0.002]
[1754064500453,2.75209158,3633.6,3633.5,0.002]
[1754064500638,3.30216733,3633.5,3633.4,0.002]
[1754064500839,11.47166733,3633.5,3633.4,1e-08]
[1754064501041,13.86526891,3633.5,3633.4,1e-08]
[1754064501539,8.98026891,3633.5,3633.4,1e-08]
[1754064501745,6.72960158,3633.5,3633.4,1e-08]
[1754064501949,7.08816733,3633.5,3633.4,1e-08]
[1754064502259,2.42431797,3634.0,3633.4,1e-08]
[1754064502462,7.0899357,3633.9,3633.4,1e-08]
[1754064502661,0.1376,3633.5,3633.4,1e-08]
[1754064503253,7.51572892,3633.5,3633.4,1e-08]
[1754064503453,8.01412892,3633.5,3633.4,1e-08]
[1754064503623,11.35022892,3633.5,3633.4,1e-08]
[1754064504828,8.01412892,3633.5,3633.4,1e-08]
[1754064505360,11.90022892,3633.5,3633.4,1e-08]
[1754064506024,11.90022892,3633.5,3633.1,1e-08]
[1754064506025,3.30239458,3633.2,3633.1,1e-08]
[1754064506227,6.43999458,3633.2,3633.1,1e-08]
[1754064506453,7.27449458,3633.2,3633.1,1e-08]
[1754064506628,11.61149458,3633.2,3633.1,1e-08]
[1754064507540,11.27539458,3633.2,3633.1,1e-08]
[1754064507750,13.19840325,3633.2,3633.1,1e-08]
[1754064508152,2.75315235,3632.2,3632.1,0.01]
[1754064508364,7.22775235,3632.2,3632.1,0.01]
[1754064508566,8.9218593,3632.2,3632.1,0.01]
[1754064508734,9.4202593,3632.2,3632.1,0.01]
[1754064509666,8.9218593,3632.2,3632.1,0.01]
[1754064510140,0.1376,3632.2,3632.1,0.01]
[1754064510342,4.4736,3632.2,3632.1,0.9216]
[1754064510531,0.1376,3632.2,3632.1,0.9216]
[1754064510729,4.4776,3632.2,3632.1,0.9216]
[1754064511166,4.4776,3632.2,3632.1,3.67482816]
[1754064511374,4.4776,3632.2,3632.1,0.01]
[1754064511557,7.67851235,3632.2,3632.1,0.01]
[1754064511731,0.58536,3632.2,3632.1,0.01]
[1754064511935,4.4776,3632.2,3632.1,0.9216]
[1754064512469,0.1376,3632.2,3632.1,3.67482816]
[1754064512672,4.4786,3632.2,3632.1,3.67482816]
[1754064513174,4.31911794,3632.2,3632.1,3.67482816]
[1754064513670,4.31911794,3632.2,3632.1,0.9216]
[1754064513671,4.343,3632.2,3632.1,0.9216]
[1754064513841,4.343,3632.2,3632.1,3.67475759]
[1754064514468,6.7516,3632.6,3632.5,2.75292498]
[1754064514675,11.0936,3632.6,3632.5,3.66452498]
[1754064514968,10.955,3632.6,3632.5,3.66452498]
[1754064515562,2.75202158,3633.7,3632.5,3.80212498]
[1754064515738,0.1376,3633.3,3633.2,2.75239458]
[1754064515934,4.4766,3633.3,3633.2,0.9116]
[1754064516351,4.4766,3633.3,3633.2,3.66399458]
[1754064516553,4.4786,3633.3,3633.2,3.66399458]
[1754064516962,0.1376,3633.3,3633.2,3.66399458]
[1754064517162,0.1376,3633.9,3633.7,2.7519849]